[Event "Titled Tuesday Blitz January 17 Late 2023"]
[White "Ward, Ieuan C"]
[Black "Al-Tarboush, Ward"]
[WhiteFideId "406627"]
[BlackFideId "7601450"]
[WhiteElo "2028"]
[BlackElo "2256"]
[Result "0-1"]
[Round "03"]
[TimeControl "180+2"]
[Date "2023.01.17"]
[WhiteClock "0:00:03"]
[BlackClock "0:01:12"]

1. e4 {[%clk 0:03:00]}  c5 {[%clk 0:02:59]} 2. Nf3 {[%clk 0:03:00]}  Nc6 {[%clk 0:03:00]} 3. d4 {[%clk 0:03:00]}  cxd4 {[%clk 0:03:01]} 4. c3 {[%clk 0:03:00]}  dxc3 {[%clk 0:02:57]} 5. Nxc3 {[%clk 0:03:01]}  e6 {[%clk 0:02:57]} 6. Bc4 {[%clk 0:03:01]}  a6 {[%clk 0:02:56]} 7. a4 {[%clk 0:03:00]}  Bb4 {[%clk 0:02:55]} 8. O-O {[%clk 0:03:00]}  Nge7 {[%clk 0:02:55]} 9. Bg5 {[%clk 0:03:00]}  f6 {[%clk 0:02:55]} 10. Be3 {[%clk 0:03:00]}  O-O {[%clk 0:02:55]} 11. Nd4 {[%clk 0:02:54]}  Nxd4 {[%clk 0:02:40]} 12. Bxd4 {[%clk 0:02:51]}  Nc6 {[%clk 0:02:40]} 13. Be3 {[%clk 0:02:52]}  Kh8 {[%clk 0:02:38]} 14. f4 {[%clk 0:02:47]}  Qe7 {[%clk 0:02:38]} 15. Kh1 {[%clk 0:02:42]}  Bc5 {[%clk 0:02:37]} 16. Bd2 {[%clk 0:02:41]}  b6 {[%clk 0:02:36]} 17. f5 {[%clk 0:02:41]}  Ne5 {[%clk 0:02:35]} 18. Bb3 {[%clk 0:02:38]}  Nd3 {[%clk 0:02:34]} 19. Qf3 {[%clk 0:02:28]}  Ne5 {[%clk 0:02:34]} 20. Qh3 {[%clk 0:02:19]}  Rb8 {[%clk 0:02:32]} 21. Bf4 {[%clk 0:02:12]}  d5 {[%clk 0:02:27]} 22. exd5 {[%clk 0:02:00]}  exf5 {[%clk 0:02:26]} 23. Rad1 {[%clk 0:01:42]}  Bd6 {[%clk 0:02:26]} 24. Bc2 {[%clk 0:01:32]}  Ng4 {[%clk 0:02:25]} 25. Bxd6 {[%clk 0:01:09]}  Qxd6 {[%clk 0:02:26]} 26. Bxf5 {[%clk 0:01:09]}  Bxf5 {[%clk 0:02:27]} 27. Rxf5 {[%clk 0:01:09]}  Ne5 {[%clk 0:02:28]} 28. Rh5 {[%clk 0:01:02]}  h6 {[%clk 0:02:28]} 29. Ne4 {[%clk 0:00:55]}  Qb4 {[%clk 0:02:28]} 30. Rxh6+ {[%clk 0:00:44]}  gxh6 {[%clk 0:02:29]} 31. Qxh6+ {[%clk 0:00:43]}  Kg8 {[%clk 0:02:29]} 32. Nxf6+ {[%clk 0:00:32]}  Rxf6 {[%clk 0:02:30]} 33. Qxf6 {[%clk 0:00:32]}  Re8 {[%clk 0:02:17]} 34. d6 {[%clk 0:00:30]}  Qg4 {[%clk 0:02:11]} 35. Re1 {[%clk 0:00:22]}  Qe6 {[%clk 0:01:53]} 36. Qg5+ {[%clk 0:00:19]}  Kh7 {[%clk 0:01:46]} 37. Qh5+ {[%clk 0:00:18]}  Kg7 {[%clk 0:01:47]} 38. Qg5+ {[%clk 0:00:18]}  Qg6 {[%clk 0:01:34]} 39. Qxg6+ {[%clk 0:00:18]}  Kxg6 {[%clk 0:01:30]} 40. d7 {[%clk 0:00:18]}  Rf8 {[%clk 0:01:30]} 41. Rd1 {[%clk 0:00:11]}  Nxd7 {[%clk 0:01:30]} 42. h4 {[%clk 0:00:09]}  Nc5 {[%clk 0:01:27]} 43. a5 {[%clk 0:00:07]}  bxa5 {[%clk 0:01:26]} 44. Rd5 {[%clk 0:00:08]}  Rf5 {[%clk 0:01:24]} 45. Rd6+ {[%clk 0:00:07]}  Kh5 {[%clk 0:01:22]} 46. g3 {[%clk 0:00:08]}  Ne4 {[%clk 0:01:22]} 47. Kh2 {[%clk 0:00:07]}  Rb5 {[%clk 0:01:16]} 48. Rxa6 {[%clk 0:00:04]}  Rxb2+ {[%clk 0:01:16]} 49. Kh3 {[%clk 0:00:03]}  Nf2+ {[%clk 0:01:16]} 50. Kg2 {[%clk 0:00:03]}  Ng4+ {[%clk 0:01:16]} 51. Kf3 {[%clk 0:00:02]}  Rb3+ {[%clk 0:01:16]} 52. Kf4 {[%clk 0:00:01]}  Rb4+ {[%clk 0:01:16]} 53. Kf3 {[%clk 0:00:01]}  a4 {[%clk 0:01:16]} 54. Ra5+ {[%clk 0:00:01]}  Kg6 {[%clk 0:01:17]} 55. h5+ {[%clk 0:00:01]}  Kh6 {[%clk 0:01:17]} 56. Ke2 {[%clk 0:00:01]}  Nf6 {[%clk 0:01:15]} 57. Kd3 {[%clk 0:00:01]}  Nxh5 {[%clk 0:01:14]} 58. Kc3 {[%clk 0:00:01]}  Rg4 {[%clk 0:01:13]} 59. Kb2 {[%clk 0:00:01]}  Nxg3 {[%clk 0:01:08]} 60. Ka3 {[%clk 0:00:02]}  Ne4 {[%clk 0:01:09]} 61. Rxa4 {[%clk 0:00:02]}  Rg3+ {[%clk 0:01:09]} 62. Ka2 {[%clk 0:00:02]}  Nc3+ {[%clk 0:01:10]} 63. Kb3 {[%clk 0:00:02]}  Nxa4+ {[%clk 0:01:11]} 64. Kxa4 {[%clk 0:00:03]}  Rg4+ {[%clk 0:01:12]} 0-1


[Site "https://www.chess.com"]

[Event "Titled Tuesday Blitz January 17 Late 2023"]
[White "Andreassen, Lars"]
[Black "Taichman, Ori"]
[WhiteFideId "1504878"]
[BlackFideId "2804069"]
[WhiteElo "2168"]
[BlackElo "2299"]
[Result "0-1"]
[Round "03"]
[TimeControl "180+2"]
[Date "2023.01.17"]
[WhiteClock "0:00:01"]
[BlackClock "0:00:07"]

1. d4 {[%clk 0:03:00]}  Nf6 {[%clk 0:02:44]} 2. Nf3 {[%clk 0:03:01]}  g6 {[%clk 0:02:44]} 3. c4 {[%clk 0:03:00]}  Bg7 {[%clk 0:02:44]} 4. Nc3 {[%clk 0:03:01]}  O-O {[%clk 0:02:45]} 5. g3 {[%clk 0:02:56]}  d6 {[%clk 0:02:45]} 6. Bg2 {[%clk 0:02:57]}  Nc6 {[%clk 0:02:46]} 7. O-O {[%clk 0:02:57]}  Rb8 {[%clk 0:02:46]} 8. d5 {[%clk 0:02:57]}  Na5 {[%clk 0:02:46]} 9. Nd2 {[%clk 0:02:58]}  c5 {[%clk 0:02:46]} 10. Rb1 {[%clk 0:02:58]}  e6 {[%clk 0:02:44]} 11. Qc2 {[%clk 0:02:56]}  exd5 {[%clk 0:02:43]} 12. cxd5 {[%clk 0:02:56]}  b5 {[%clk 0:02:37]} 13. b3 {[%clk 0:02:56]}  Re8 {[%clk 0:02:32]} 14. Bb2 {[%clk 0:02:53]}  b4 {[%clk 0:02:32]} 15. Nce4 {[%clk 0:02:47]}  Bf5 {[%clk 0:02:00]} 16. Nxf6+ {[%clk 0:02:45]}  Bxf6 {[%clk 0:01:53]} 17. e4 {[%clk 0:02:44]}  Bg4 {[%clk 0:01:41]} 18. f3 {[%clk 0:02:39]}  Bd7 {[%clk 0:01:41]} 19. Kh1 {[%clk 0:02:23]}  Bb5 {[%clk 0:01:38]} 20. Rfe1 {[%clk 0:02:23]}  Rc8 {[%clk 0:01:30]} 21. Nc4 {[%clk 0:02:20]}  Bxc4 {[%clk 0:01:29]} 22. bxc4 {[%clk 0:02:20]}  Bxb2 {[%clk 0:01:30]} 23. Rxb2 {[%clk 0:02:19]}  Qd7 {[%clk 0:01:28]} 24. h4 {[%clk 0:01:58]}  Rb8 {[%clk 0:01:28]} 25. Kh2 {[%clk 0:01:56]}  Rb6 {[%clk 0:01:24]} 26. Re3 {[%clk 0:01:50]}  Qb7 {[%clk 0:01:14]} 27. f4 {[%clk 0:01:43]}  Qa6 {[%clk 0:01:09]} 28. Bf1 {[%clk 0:01:39]}  Rb7 {[%clk 0:01:02]} 29. Qa4 {[%clk 0:01:31]}  Rbe7 {[%clk 0:01:01]} 30. Rbe2 {[%clk 0:01:21]}  Qb6 {[%clk 0:00:56]} 31. Re1 {[%clk 0:01:18]}  Kf8 {[%clk 0:00:51]} 32. e5 {[%clk 0:01:13]}  Nb7 {[%clk 0:00:34]} 33. Bh3 {[%clk 0:00:57]}  dxe5 {[%clk 0:00:32]} 34. fxe5 {[%clk 0:00:57]}  Nd6 {[%clk 0:00:31]} 35. Qc2 {[%clk 0:00:50]}  Qa6 {[%clk 0:00:27]} 36. Bf1 {[%clk 0:00:43]}  Nf5 {[%clk 0:00:26]} 37. Re4 {[%clk 0:00:34]}  Qa3 {[%clk 0:00:26]} 38. Qf2 {[%clk 0:00:21]}  Qc3 {[%clk 0:00:18]} 39. g4 {[%clk 0:00:19]}  Rxe5 {[%clk 0:00:18]} 40. Rxe5 {[%clk 0:00:16]}  Rxe5 {[%clk 0:00:19]} 41. Qxc5+ {[%clk 0:00:14]}  Kg7 {[%clk 0:00:17]} 42. Rxe5 {[%clk 0:00:10]}  Qxe5+ {[%clk 0:00:18]} 43. Kg1 {[%clk 0:00:07]}  Qg3+ {[%clk 0:00:18]} 44. Bg2 {[%clk 0:00:06]}  Ne3 {[%clk 0:00:17]} 45. Qd4+ {[%clk 0:00:04]}  Kg8 {[%clk 0:00:17]} 46. Qe4 {[%clk 0:00:04]}  a5 {[%clk 0:00:14]} 47. Qe8+ {[%clk 0:00:03]}  Kg7 {[%clk 0:00:14]} 48. Qe4 {[%clk 0:00:03]}  a4 {[%clk 0:00:15]} 49. d6 {[%clk 0:00:03]}  b3 {[%clk 0:00:15]} 50. axb3 {[%clk 0:00:02]}  axb3 {[%clk 0:00:15]} 51. d7 {[%clk 0:00:02]}  Nxg2 {[%clk 0:00:07]} 52. Qd4+ {[%clk 0:00:02]}  Kh6 {[%clk 0:00:07]} 53. g5+ {[%clk 0:00:01]}  Kh5 {[%clk 0:00:07]} 54. Qd1+ {[%clk 0:00:01]}  Kxh4 {[%clk 0:00:07]} 0-1


[Site "https://www.chess.com"]

[Event "Titled Tuesday Blitz January 17 Late 2023"]
[White "Mendez Fortes, Eduardo Jesus"]
[Black "Almedina Ortiz, Edgardo J."]
[WhiteFideId "3502376"]
[BlackFideId "3100197"]
[WhiteElo "2250"]
[BlackElo "2156"]
[Result "1-0"]
[Round "03"]
[TimeControl "180+2"]
[Date "2023.01.17"]
[WhiteClock "0:00:38"]
[BlackClock "0:00:17"]

1. e4 {[%clk 0:02:55]}  c5 {[%clk 0:02:59]} 2. Nf3 {[%clk 0:02:54]}  e6 {[%clk 0:02:58]} 3. d4 {[%clk 0:02:55]}  cxd4 {[%clk 0:02:59]} 4. Nxd4 {[%clk 0:02:56]}  Nc6 {[%clk 0:02:59]} 5. Nc3 {[%clk 0:02:55]}  Qc7 {[%clk 0:02:59]} 6. Be3 {[%clk 0:02:55]}  a6 {[%clk 0:02:58]} 7. Qd2 {[%clk 0:02:54]}  Nf6 {[%clk 0:02:58]} 8. O-O-O {[%clk 0:02:53]}  Be7 {[%clk 0:02:57]} 9. f3 {[%clk 0:02:44]}  O-O {[%clk 0:02:56]} 10. g4 {[%clk 0:02:39]}  Rd8 {[%clk 0:02:54]} 11. g5 {[%clk 0:02:38]}  Ne8 {[%clk 0:02:54]} 12. h4 {[%clk 0:02:33]}  b5 {[%clk 0:02:48]} 13. h5 {[%clk 0:02:26]}  b4 {[%clk 0:02:45]} 14. Nce2 {[%clk 0:02:25]}  Ne5 {[%clk 0:02:32]} 15. g6 {[%clk 0:02:19]}  fxg6 {[%clk 0:02:23]} 16. hxg6 {[%clk 0:02:20]}  Nxg6 {[%clk 0:02:23]} 17. Nf4 {[%clk 0:02:18]}  Nf8 {[%clk 0:02:10]} 18. Kb1 {[%clk 0:01:59]}  Bb7 {[%clk 0:01:56]} 19. Rg1 {[%clk 0:01:57]}  Rac8 {[%clk 0:01:48]} 20. Nh5 {[%clk 0:01:48]}  d5 {[%clk 0:01:34]} 21. Qg2 {[%clk 0:01:23]}  g6 {[%clk 0:01:27]} 22. Nf4 {[%clk 0:01:18]}  Ng7 {[%clk 0:01:13]} 23. exd5 {[%clk 0:01:06]}  exd5 {[%clk 0:00:57]} 24. Bd3 {[%clk 0:00:58]}  Bf6 {[%clk 0:00:50]} 25. Rge1 {[%clk 0:00:52]}  Bxd4 {[%clk 0:00:47]} 26. Bxd4 {[%clk 0:00:53]}  Qxf4 {[%clk 0:00:46]} 27. Bxg7 {[%clk 0:00:53]}  Kxg7 {[%clk 0:00:44]} 28. Re7+ {[%clk 0:00:53]}  Kg8 {[%clk 0:00:36]} 29. Rxb7 {[%clk 0:00:52]}  a5 {[%clk 0:00:31]} 30. Rh1 {[%clk 0:00:51]}  Rd7 {[%clk 0:00:29]} 31. Rxd7 {[%clk 0:00:44]}  Nxd7 {[%clk 0:00:28]} 32. Bxg6 {[%clk 0:00:39]}  hxg6 {[%clk 0:00:20]} 33. Qxg6+ {[%clk 0:00:40]}  Kf8 {[%clk 0:00:20]} 34. Rh8+ {[%clk 0:00:39]}  Ke7 {[%clk 0:00:20]} 35. Rxc8 {[%clk 0:00:39]}  Qxf3 {[%clk 0:00:17]} 36. Re8# {[%clk 0:00:38]} 1-0


[Site "https://www.chess.com"]

[Event "Titled Tuesday Blitz January 17 Late 2023"]
[White "Munoz, Francisco Javier"]
[Black "Ardila, Oscar Humberto"]
[WhiteFideId "128368"]
[BlackFideId "4404742"]
[WhiteElo "2389"]
[BlackElo "1982"]
[Result "1-0"]
[Round "03"]
[TimeControl "180+2"]
[Date "2023.01.17"]
[WhiteClock "0:00:09"]
[BlackClock "0:00:04"]

1. e4 {[%clk 0:02:56]}  e5 {[%clk 0:02:59]} 2. Nc3 {[%clk 0:02:57]}  Nf6 {[%clk 0:02:59]} 3. f4 {[%clk 0:02:56]}  d6 {[%clk 0:02:56]} 4. Nf3 {[%clk 0:02:56]}  Bg4 {[%clk 0:02:56]} 5. h3 {[%clk 0:02:54]}  Bxf3 {[%clk 0:02:56]} 6. Qxf3 {[%clk 0:02:54]}  Nbd7 {[%clk 0:02:56]} 7. Bc4 {[%clk 0:02:53]}  Be7 {[%clk 0:02:56]} 8. d3 {[%clk 0:02:54]}  c6 {[%clk 0:02:55]} 9. g4 {[%clk 0:02:52]}  exf4 {[%clk 0:02:46]} 10. Bxf4 {[%clk 0:02:51]}  Ne5 {[%clk 0:02:45]} 11. Bxe5 {[%clk 0:02:51]}  dxe5 {[%clk 0:02:45]} 12. O-O-O {[%clk 0:02:51]}  h6 {[%clk 0:02:43]} 13. Kb1 {[%clk 0:02:50]}  b5 {[%clk 0:02:40]} 14. Bb3 {[%clk 0:02:50]}  a5 {[%clk 0:02:40]} 15. a4 {[%clk 0:02:48]}  b4 {[%clk 0:02:38]} 16. Ne2 {[%clk 0:02:48]}  Qd7 {[%clk 0:02:23]} 17. Ng3 {[%clk 0:02:46]}  Bf8 {[%clk 0:02:12]} 18. Nf5 {[%clk 0:02:39]}  O-O-O {[%clk 0:02:11]} 19. d4 {[%clk 0:02:33]}  Qc7 {[%clk 0:01:50]} 20. dxe5 {[%clk 0:02:31]}  Qxe5 {[%clk 0:01:42]} 21. Rxd8+ {[%clk 0:02:28]}  Kxd8 {[%clk 0:01:42]} 22. Rd1+ {[%clk 0:02:28]}  Kc7 {[%clk 0:01:43]} 23. Bxf7 {[%clk 0:02:01]}  Nxe4 {[%clk 0:01:40]} 24. Qd3 {[%clk 0:01:36]}  Bd6 {[%clk 0:01:19]} 25. Bg6 {[%clk 0:00:45]}  Rd8 {[%clk 0:01:10]} 26. Qa6 {[%clk 0:00:35]}  Rb8 {[%clk 0:01:04]} 27. Nxd6 {[%clk 0:00:23]}  Nxd6 {[%clk 0:01:04]} 28. Qa7+ {[%clk 0:00:23]}  Rb7 {[%clk 0:01:03]} 29. Qf2 {[%clk 0:00:23]}  Qf6 {[%clk 0:01:01]} 30. Qxf6 {[%clk 0:00:21]}  gxf6 {[%clk 0:01:01]} 31. Rf1 {[%clk 0:00:22]}  Kb6 {[%clk 0:00:49]} 32. Rxf6 {[%clk 0:00:22]}  Kc5 {[%clk 0:00:50]} 33. Bd3 {[%clk 0:00:20]}  Re7 {[%clk 0:00:49]} 34. Rxh6 {[%clk 0:00:20]}  Re1+ {[%clk 0:00:49]} 35. Ka2 {[%clk 0:00:20]}  Rh1 {[%clk 0:00:49]} 36. h4 {[%clk 0:00:20]}  Nf7 {[%clk 0:00:44]} 37. Rf6 {[%clk 0:00:19]}  Ne5 {[%clk 0:00:44]} 38. Rf5 {[%clk 0:00:17]}  Kd4 {[%clk 0:00:44]} 39. h5 {[%clk 0:00:15]}  c5 {[%clk 0:00:40]} 40. Rf4+ {[%clk 0:00:14]}  Kd5 {[%clk 0:00:39]} 41. Bb5 {[%clk 0:00:12]}  c4 {[%clk 0:00:34]} 42. Rf5 {[%clk 0:00:12]}  Rh2 {[%clk 0:00:30]} 43. Be8 {[%clk 0:00:08]}  Rxc2 {[%clk 0:00:28]} 44. Rf1 {[%clk 0:00:06]}  b3+ {[%clk 0:00:27]} 45. Kb1 {[%clk 0:00:07]}  Nd3 {[%clk 0:00:27]} 46. h6 {[%clk 0:00:04]}  Rxb2+ {[%clk 0:00:26]} 47. Ka1 {[%clk 0:00:05]}  Ra2+ {[%clk 0:00:27]} 48. Kb1 {[%clk 0:00:06]}  c3 {[%clk 0:00:23]} 49. Bf7+ {[%clk 0:00:04]}  Kd4 {[%clk 0:00:22]} 50. Bxb3 {[%clk 0:00:05]}  Rb2+ {[%clk 0:00:23]} 51. Ka1 {[%clk 0:00:05]}  Rxb3 {[%clk 0:00:23]} 52. h7 {[%clk 0:00:06]}  Ra3+ {[%clk 0:00:22]} 53. Kb1 {[%clk 0:00:06]}  Nb4 {[%clk 0:00:17]} 54. h8=Q+ {[%clk 0:00:05]}  Kc4 {[%clk 0:00:17]} 55. Qc8+ {[%clk 0:00:05]}  Kb3 {[%clk 0:00:18]} 56. Qg8+ {[%clk 0:00:05]}  Kxa4 {[%clk 0:00:15]} 57. Rc1 {[%clk 0:00:05]}  Rb3+ {[%clk 0:00:14]} 58. Qxb3+ {[%clk 0:00:06]}  Kxb3 {[%clk 0:00:15]} 59. g5 {[%clk 0:00:06]}  a4 {[%clk 0:00:16]} 60. g6 {[%clk 0:00:07]}  a3 {[%clk 0:00:14]} 61. g7 {[%clk 0:00:07]}  a2+ {[%clk 0:00:14]} 62. Ka1 {[%clk 0:00:07]}  Nc2+ {[%clk 0:00:08]} 63. Rxc2 {[%clk 0:00:08]}  Kxc2 {[%clk 0:00:07]} 64. g8=Q {[%clk 0:00:08]}  Kd2 {[%clk 0:00:07]} 65. Qg2+ {[%clk 0:00:08]}  Kd1 {[%clk 0:00:08]} 66. Qf1+ {[%clk 0:00:08]}  Kd2 {[%clk 0:00:07]} 67. Qf2+ {[%clk 0:00:09]}  Kd1 {[%clk 0:00:08]} 68. Qd4+ {[%clk 0:00:08]}  Kc2 {[%clk 0:00:07]} 69. Kxa2 {[%clk 0:00:09]}  Kc1 {[%clk 0:00:06]} 70. Kb3 {[%clk 0:00:09]}  c2 {[%clk 0:00:05]} 71. Qc3 {[%clk 0:00:08]}  Kb1 {[%clk 0:00:04]} 72. Qxc2+ {[%clk 0:00:09]} 1-0


[Site "https://www.chess.com"]

[Event "Titled Tuesday Blitz January 17 Late 2023"]
[White "Fajdetic, Hrvoje"]
[Black "Martinez Reyes, Pedro Ramon"]
[WhiteFideId "14501945"]
[BlackFideId "3901807"]
[WhiteElo "2151"]
[BlackElo "2376"]
[Result "0-1"]
[Round "03"]
[TimeControl "180+2"]
[Date "2023.01.17"]
[WhiteClock "0:00:03"]
[BlackClock "0:00:47"]

1. d4 {[%clk 0:03:00]}  Nf6 {[%clk 0:02:57]} 2. Bf4 {[%clk 0:03:00]}  c5 {[%clk 0:02:53]} 3. d5 {[%clk 0:03:00]}  d6 {[%clk 0:02:53]} 4. Nc3 {[%clk 0:02:59]}  e5 {[%clk 0:02:53]} 5. dxe6 {[%clk 0:02:53]}  Bxe6 {[%clk 0:02:52]} 6. e4 {[%clk 0:02:52]}  Nc6 {[%clk 0:02:52]} 7. Bb5 {[%clk 0:02:50]}  Qa5 {[%clk 0:02:41]} 8. Bd2 {[%clk 0:02:39]}  a6 {[%clk 0:02:26]} 9. Nd5 {[%clk 0:02:29]}  Qd8 {[%clk 0:02:25]} 10. Nxf6+ {[%clk 0:02:20]}  Qxf6 {[%clk 0:02:24]} 11. Bc3 {[%clk 0:02:13]}  Qg6 {[%clk 0:02:23]} 12. Bxc6+ {[%clk 0:02:12]}  bxc6 {[%clk 0:02:23]} 13. Qf3 {[%clk 0:02:05]}  Be7 {[%clk 0:02:16]} 14. Ne2 {[%clk 0:01:44]}  Bg4 {[%clk 0:02:12]} 15. Qd3 {[%clk 0:00:29]}  O-O {[%clk 0:01:58]} 16. O-O {[%clk 0:00:27]}  Rfe8 {[%clk 0:01:50]} 17. Ng3 {[%clk 0:00:26]}  h5 {[%clk 0:01:48]} 18. f3 {[%clk 0:00:24]}  Bd7 {[%clk 0:01:42]} 19. Rf2 {[%clk 0:00:21]}  h4 {[%clk 0:01:41]} 20. Nf1 {[%clk 0:00:21]}  Bg5 {[%clk 0:01:41]} 21. Bd2 {[%clk 0:00:20]}  Be7 {[%clk 0:01:34]} 22. b3 {[%clk 0:00:19]}  a5 {[%clk 0:01:34]} 23. c4 {[%clk 0:00:19]}  a4 {[%clk 0:01:33]} 24. Bc3 {[%clk 0:00:18]}  axb3 {[%clk 0:01:33]} 25. axb3 {[%clk 0:00:19]}  Rxa1 {[%clk 0:01:33]} 26. Bxa1 {[%clk 0:00:19]}  Ra8 {[%clk 0:01:33]} 27. Bc3 {[%clk 0:00:18]}  Ra3 {[%clk 0:01:31]} 28. Bb2 {[%clk 0:00:15]}  Ra2 {[%clk 0:01:30]} 29. Bc3 {[%clk 0:00:15]}  Rxf2 {[%clk 0:01:27]} 30. Kxf2 {[%clk 0:00:16]}  f5 {[%clk 0:01:23]} 31. Nd2 {[%clk 0:00:13]}  Be6 {[%clk 0:01:19]} 32. exf5 {[%clk 0:00:11]}  Bxf5 {[%clk 0:01:17]} 33. Ne4 {[%clk 0:00:12]}  Bxe4 {[%clk 0:01:17]} 34. Qxe4 {[%clk 0:00:12]}  Qxe4 {[%clk 0:01:17]} 35. fxe4 {[%clk 0:00:12]}  Kf7 {[%clk 0:01:12]} 36. e5 {[%clk 0:00:12]}  d5 {[%clk 0:01:11]} 37. Kf3 {[%clk 0:00:12]}  Ke6 {[%clk 0:01:11]} 38. Bb2 {[%clk 0:00:02]}  Kf5 {[%clk 0:01:09]} 39. g3 {[%clk 0:00:02]}  hxg3 {[%clk 0:01:10]} 40. hxg3 {[%clk 0:00:01]}  d4 {[%clk 0:01:08]} 41. g4+ {[%clk 0:00:02]}  Kxe5 {[%clk 0:01:08]} 42. Ba3 {[%clk 0:00:02]}  Bd6 {[%clk 0:01:00]} 43. Bb2 {[%clk 0:00:03]}  Bc7 {[%clk 0:00:58]} 44. Bc1 {[%clk 0:00:03]}  Ba5 {[%clk 0:00:57]} 45. Bf4+ {[%clk 0:00:03]}  Ke6 {[%clk 0:00:56]} 46. Bb8 {[%clk 0:00:02]}  Kf6 {[%clk 0:00:49]} 47. Ke4 {[%clk 0:00:02]}  Kg5 {[%clk 0:00:49]} 48. Kf3 {[%clk 0:00:02]}  Kh4 {[%clk 0:00:48]} 49. Ba7 {[%clk 0:00:02]}  Bb4 {[%clk 0:00:48]} 50. Bb8 {[%clk 0:00:02]}  g6 {[%clk 0:00:47]} 51. Bg3+ {[%clk 0:00:03]}  Kh3 {[%clk 0:00:48]} 52. Bf4 {[%clk 0:00:03]}  d3 {[%clk 0:00:47]} 0-1


[Site "https://www.chess.com"]

[Event "Titled Tuesday Blitz January 17 Late 2023"]
[White "Potapova, Margarita"]
[Black "Weissbarth, Adam"]
[WhiteFideId "14126869"]
[BlackFideId "2018187"]
[WhiteElo "2104"]
[BlackElo "2144"]
[Result "1-0"]
[Round "03"]
[TimeControl "180+2"]
[Date "2023.01.17"]
[WhiteClock "0:02:10"]
[BlackClock "0:01:24"]

1. e4 {[%clk 0:03:00]}  d5 {[%clk 0:02:57]} 2. exd5 {[%clk 0:03:00]}  Qxd5 {[%clk 0:02:58]} 3. Nc3 {[%clk 0:03:01]}  Qa5 {[%clk 0:02:58]} 4. d4 {[%clk 0:03:02]}  Nf6 {[%clk 0:02:59]} 5. Nf3 {[%clk 0:03:02]}  c6 {[%clk 0:02:59]} 6. Ne5 {[%clk 0:03:02]}  Be6 {[%clk 0:02:59]} 7. Be2 {[%clk 0:03:00]}  Nbd7 {[%clk 0:02:59]} 8. Nc4 {[%clk 0:03:00]}  Bxc4 {[%clk 0:02:58]} 9. Bxc4 {[%clk 0:03:00]}  e6 {[%clk 0:02:50]} 10. O-O {[%clk 0:03:00]}  Bb4 {[%clk 0:02:43]} 11. Ne2 {[%clk 0:02:58]}  O-O {[%clk 0:02:41]} 12. Ng3 {[%clk 0:02:57]}  b5 {[%clk 0:02:39]} 13. Bd3 {[%clk 0:02:56]}  a6 {[%clk 0:02:38]} 14. Bg5 {[%clk 0:02:52]}  h6 {[%clk 0:02:38]} 15. Bxf6 {[%clk 0:02:44]}  Nxf6 {[%clk 0:02:39]} 16. Nh5 {[%clk 0:02:45]}  Nxh5 {[%clk 0:02:38]} 17. Qxh5 {[%clk 0:02:46]}  Qd8 {[%clk 0:02:33]} 18. c3 {[%clk 0:02:44]}  Bd6 {[%clk 0:02:33]} 19. Rfe1 {[%clk 0:02:44]}  Qg5 {[%clk 0:02:32]} 20. Qf3 {[%clk 0:02:44]}  Rac8 {[%clk 0:02:30]} 21. Qe4 {[%clk 0:02:43]}  g6 {[%clk 0:02:28]} 22. g3 {[%clk 0:02:43]}  Qd5 {[%clk 0:02:26]} 23. Qe3 {[%clk 0:02:43]}  Kg7 {[%clk 0:02:24]} 24. Be4 {[%clk 0:02:43]}  Qg5 {[%clk 0:02:20]} 25. f4 {[%clk 0:02:41]}  Qg4 {[%clk 0:02:16]} 26. Bf3 {[%clk 0:02:38]}  Qf5 {[%clk 0:02:16]} 27. Be4 {[%clk 0:02:31]}  Qg4 {[%clk 0:02:15]} 28. Kg2 {[%clk 0:02:29]}  g5 {[%clk 0:01:44]} 29. f5 {[%clk 0:02:16]}  exf5 {[%clk 0:01:37]} 30. Bf3 {[%clk 0:02:09]}  f4 {[%clk 0:01:25]} 31. Bxg4 {[%clk 0:02:09]}  fxe3 {[%clk 0:01:25]} 32. Bxc8 {[%clk 0:02:09]}  Rxc8 {[%clk 0:01:24]} 33. Rxe3 {[%clk 0:02:10]} 1-0


[Site "https://www.chess.com"]

[Event "Titled Tuesday Blitz January 17 Late 2023"]
[White "Papp, Petra"]
[Black "Principe, Gerson"]
[WhiteFideId "739049"]
[BlackFideId "3804550"]
[WhiteElo "2343"]
[BlackElo "2226"]
[Result "0-1"]
[Round "03"]
[TimeControl "180+2"]
[Date "2023.01.17"]
[WhiteClock "0:00:11"]
[BlackClock "0:00:55"]

1. e4 {[%clk 0:03:00]}  b6 {[%clk 0:02:47]} 2. d4 {[%clk 0:02:59]}  Bb7 {[%clk 0:02:47]} 3. Bd3 {[%clk 0:03:00]}  e6 {[%clk 0:02:47]} 4. Nf3 {[%clk 0:02:58]}  c5 {[%clk 0:02:46]} 5. c3 {[%clk 0:02:56]}  Nf6 {[%clk 0:02:41]} 6. Qe2 {[%clk 0:02:55]}  d5 {[%clk 0:02:40]} 7. e5 {[%clk 0:02:55]}  Nfd7 {[%clk 0:02:41]} 8. O-O {[%clk 0:02:51]}  Be7 {[%clk 0:02:41]} 9. a3 {[%clk 0:02:41]}  Qc8 {[%clk 0:02:40]} 10. b4 {[%clk 0:02:36]}  Nc6 {[%clk 0:02:26]} 11. Bg5 {[%clk 0:02:29]}  Qd8 {[%clk 0:02:25]} 12. h4 {[%clk 0:02:23]}  h6 {[%clk 0:02:25]} 13. Bxe7 {[%clk 0:02:22]}  Qxe7 {[%clk 0:02:26]} 14. Nbd2 {[%clk 0:02:13]}  O-O {[%clk 0:02:24]} 15. g3 {[%clk 0:02:08]}  f5 {[%clk 0:02:13]} 16. exf6 {[%clk 0:01:57]}  Qxf6 {[%clk 0:02:11]} 17. Kg2 {[%clk 0:01:48]}  e5 {[%clk 0:02:07]} 18. dxe5 {[%clk 0:01:42]}  Ncxe5 {[%clk 0:02:01]} 19. Nxe5 {[%clk 0:01:26]}  Nxe5 {[%clk 0:01:59]} 20. f4 {[%clk 0:01:22]}  Nxd3 {[%clk 0:01:41]} 21. Qxd3 {[%clk 0:01:22]}  d4+ {[%clk 0:01:42]} 22. Nf3 {[%clk 0:01:22]}  dxc3 {[%clk 0:01:36]} 23. bxc5 {[%clk 0:01:22]}  Rac8 {[%clk 0:01:31]} 24. cxb6 {[%clk 0:01:12]}  axb6 {[%clk 0:01:32]} 25. Rac1 {[%clk 0:01:08]}  Rfd8 {[%clk 0:01:26]} 26. Qe3 {[%clk 0:00:48]}  c2 {[%clk 0:01:10]} 27. Kg1 {[%clk 0:00:44]}  Rc3 {[%clk 0:01:08]} 28. Qe2 {[%clk 0:00:35]}  Rdd3 {[%clk 0:01:04]} 29. Qe8+ {[%clk 0:00:18]}  Kh7 {[%clk 0:01:02]} 30. Ng5+ {[%clk 0:00:14]}  hxg5 {[%clk 0:01:00]} 31. Qh5+ {[%clk 0:00:12]}  Qh6 {[%clk 0:00:59]} 32. Qxh6+ {[%clk 0:00:10]}  gxh6 {[%clk 0:00:57]} 33. hxg5 {[%clk 0:00:11]}  Rxg3+ {[%clk 0:00:57]} 34. Kf2 {[%clk 0:00:11]}  Rg2+ {[%clk 0:00:55]} 35. Ke1 {[%clk 0:00:11]}  Re3# {[%clk 0:00:55]} 0-1


[Site "https://www.chess.com"]